[Event "Titled Tuesday Blitz April 18 Early 2023"]
[White "Manukian, Artak"]
[Black "Ordekalog"]
[WhiteFideId "13301373"]
[WhiteElo "2130"]
[BlackElo "2510"]
[Result "0-1"]
[Round "10"]
[TimeControl "180+2"]
[Date "2023.04.18"]
[WhiteClock "0:00:01"]
[BlackClock "0:00:04"]

1. e4 {[%clk 0:02:54]}  d5 {[%clk 0:02:58]} 2. exd5 {[%clk 0:02:54]}  Qxd5 {[%clk 0:02:58]} 3. d4 {[%clk 0:02:54]}  e5 {[%clk 0:02:57]} 4. dxe5 {[%clk 0:02:53]}  Qxd1+ {[%clk 0:02:56]} 5. Kxd1 {[%clk 0:02:53]}  Nc6 {[%clk 0:02:56]} 6. Bb5 {[%clk 0:02:49]}  Bd7 {[%clk 0:02:47]} 7. Bf4 {[%clk 0:02:37]}  O-O-O {[%clk 0:02:46]} 8. Kc1 {[%clk 0:02:34]}  Bc5 {[%clk 0:02:43]} 9. Bg3 {[%clk 0:02:23]}  Nge7 {[%clk 0:02:40]} 10. Nf3 {[%clk 0:02:21]}  Bg4 {[%clk 0:02:32]} 11. Nbd2 {[%clk 0:02:16]}  h6 {[%clk 0:02:27]} 12. Nb3 {[%clk 0:02:01]}  Bb6 {[%clk 0:02:25]} 13. a4 {[%clk 0:02:01]}  a6 {[%clk 0:02:24]} 14. Bc4 {[%clk 0:02:00]}  Rhf8 {[%clk 0:02:11]} 15. a5 {[%clk 0:01:50]}  Ba7 {[%clk 0:02:10]} 16. Re1 {[%clk 0:01:36]}  Be6 {[%clk 0:02:01]} 17. Ra4 {[%clk 0:01:22]}  Nf5 {[%clk 0:01:53]} 18. Bxe6+ {[%clk 0:01:15]}  fxe6 {[%clk 0:01:53]} 19. Re2 {[%clk 0:01:11]}  g5 {[%clk 0:01:46]} 20. Nbd2 {[%clk 0:01:00]}  Rd5 {[%clk 0:01:43]} 21. Ne4 {[%clk 0:00:53]}  Rfd8 {[%clk 0:01:40]} 22. Kb1 {[%clk 0:00:53]}  g4 {[%clk 0:01:16]} 23. Nh4 {[%clk 0:00:46]}  Rd1+ {[%clk 0:01:09]} 24. Ka2 {[%clk 0:00:45]}  Nxg3 {[%clk 0:01:01]} 25. Nxg3 {[%clk 0:00:41]}  R8d5 {[%clk 0:00:59]} 26. Ng6 {[%clk 0:00:29]}  Bc5 {[%clk 0:00:48]} 27. Ne4 {[%clk 0:00:26]}  Bb4 {[%clk 0:00:36]} 28. Nc3 {[%clk 0:00:16]}  Bxc3 {[%clk 0:00:31]} 29. bxc3 {[%clk 0:00:17]}  h5 {[%clk 0:00:14]} 30. Nf4 {[%clk 0:00:16]}  Rb5 {[%clk 0:00:13]} 31. Nxe6 {[%clk 0:00:12]}  Rbb1 {[%clk 0:00:13]} 32. Rf4 {[%clk 0:00:06]}  Ra1+ {[%clk 0:00:11]} 33. Kb3 {[%clk 0:00:05]}  Nxa5+ {[%clk 0:00:09]} 34. Kb4 {[%clk 0:00:06]}  Rdb1+ {[%clk 0:00:08]} 35. Kc5 {[%clk 0:00:06]}  b6+ {[%clk 0:00:07]} 36. Kd4 {[%clk 0:00:06]}  Nc6+ {[%clk 0:00:05]} 37. Ke3 {[%clk 0:00:04]}  Kb7 {[%clk 0:00:04]} 38. Re4 {[%clk 0:00:03]}  Ne7 {[%clk 0:00:04]} 39. Nf4 {[%clk 0:00:02]}  Nf5+ {[%clk 0:00:03]} 40. Kd3 {[%clk 0:00:02]}  Rd1+ {[%clk 0:00:03]} 41. Rd2 {[%clk 0:00:03]}  Rxd2+ {[%clk 0:00:03]} 42. Kxd2 {[%clk 0:00:03]}  Ra5 {[%clk 0:00:03]} 43. e6 {[%clk 0:00:03]}  Ne7 {[%clk 0:00:03]} 44. c4 {[%clk 0:00:02]}  Rf5 {[%clk 0:00:03]} 45. g3 {[%clk 0:00:02]}  Kc6 {[%clk 0:00:03]} 46. Ke3 {[%clk 0:00:01]}  a5 {[%clk 0:00:04]} 0-1


[Site "https://www.chess.com"]

[Event "Titled Tuesday Blitz April 18 Early 2023"]
[White "Mouhamad, Joachim"]
[Black "Mazurkiewicz, Michal"]
[WhiteFideId "656410"]
[BlackFideId "1124943"]
[WhiteElo "2125"]
[BlackElo "2054"]
[Result "0-1"]
[Round "10"]
[TimeControl "180+2"]
[Date "2023.04.18"]
[WhiteClock "0:00:01"]
[BlackClock "0:00:06"]

1. e4 {[%clk 0:02:58]}  d6 {[%clk 0:02:59]} 2. d4 {[%clk 0:02:58]}  Nf6 {[%clk 0:03:00]} 3. Nc3 {[%clk 0:02:59]}  c6 {[%clk 0:03:00]} 4. a4 {[%clk 0:02:57]}  e5 {[%clk 0:03:00]} 5. Nf3 {[%clk 0:02:54]}  Qc7 {[%clk 0:02:52]} 6. Bc4 {[%clk 0:02:42]}  Be7 {[%clk 0:02:52]} 7. O-O {[%clk 0:02:37]}  O-O {[%clk 0:02:52]} 8. h3 {[%clk 0:02:36]}  a5 {[%clk 0:02:52]} 9. Ba2 {[%clk 0:02:34]}  Nbd7 {[%clk 0:02:51]} 10. Re1 {[%clk 0:02:26]}  Re8 {[%clk 0:02:51]} 11. Be3 {[%clk 0:02:22]}  Bf8 {[%clk 0:02:47]} 12. dxe5 {[%clk 0:02:12]}  dxe5 {[%clk 0:02:47]} 13. Qd2 {[%clk 0:02:09]}  Nc5 {[%clk 0:02:45]} 14. Ng5 {[%clk 0:01:48]}  Ne6 {[%clk 0:02:39]} 15. Rad1 {[%clk 0:01:42]}  h6 {[%clk 0:02:20]} 16. Nxe6 {[%clk 0:01:29]}  Bxe6 {[%clk 0:02:21]} 17. Bxe6 {[%clk 0:01:29]}  Rxe6 {[%clk 0:02:21]} 18. f3 {[%clk 0:01:25]}  Bb4 {[%clk 0:02:13]} 19. Qd3 {[%clk 0:01:21]}  Rd6 {[%clk 0:02:08]} 20. Qc4 {[%clk 0:01:20]}  Rad8 {[%clk 0:02:08]} 21. Rxd6 {[%clk 0:01:14]}  Rxd6 {[%clk 0:01:39]} 22. Rd1 {[%clk 0:01:14]}  Rxd1+ {[%clk 0:01:36]} 23. Nxd1 {[%clk 0:01:14]}  Nh5 {[%clk 0:00:37]} 24. Qd3 {[%clk 0:01:08]}  Nf4 {[%clk 0:00:33]} 25. Bxf4 {[%clk 0:01:01]}  exf4 {[%clk 0:00:34]} 26. Kf1 {[%clk 0:00:54]}  Bc5 {[%clk 0:00:26]} 27. Nc3 {[%clk 0:00:41]}  Qb6 {[%clk 0:00:25]} 28. b3 {[%clk 0:00:36]}  Bg1 {[%clk 0:00:25]} 29. Nd1 {[%clk 0:00:26]}  Bh2 {[%clk 0:00:21]} 30. Ke1 {[%clk 0:00:23]}  Qg1+ {[%clk 0:00:20]} 31. Qf1 {[%clk 0:00:21]}  Bg3+ {[%clk 0:00:21]} 32. Ke2 {[%clk 0:00:21]}  Qd4 {[%clk 0:00:21]} 33. c3 {[%clk 0:00:16]}  Qb6 {[%clk 0:00:18]} 34. Kd2 {[%clk 0:00:13]}  Qxb3 {[%clk 0:00:18]} 35. Qd3 {[%clk 0:00:13]}  Qa2+ {[%clk 0:00:16]} 36. Qc2 {[%clk 0:00:10]}  Be1+ {[%clk 0:00:16]} 37. Kc1 {[%clk 0:00:09]}  Qa1+ {[%clk 0:00:12]} 38. Qb1 {[%clk 0:00:09]}  Qxa4 {[%clk 0:00:13]} 39. Qxb7 {[%clk 0:00:08]}  Qa1+ {[%clk 0:00:10]} 40. Kc2 {[%clk 0:00:09]}  Qa2+ {[%clk 0:00:10]} 41. Kd3 {[%clk 0:00:06]}  Qe6 {[%clk 0:00:05]} 42. Qb1 {[%clk 0:00:04]}  Kh7 {[%clk 0:00:05]} 43. Ke2 {[%clk 0:00:05]}  Bg3 {[%clk 0:00:05]} 44. Qd3 {[%clk 0:00:05]}  a4 {[%clk 0:00:05]} 45. e5+ {[%clk 0:00:05]}  g6 {[%clk 0:00:04]} 46. Qd4 {[%clk 0:00:04]}  a3 {[%clk 0:00:04]} 47. c4 {[%clk 0:00:04]}  a2 {[%clk 0:00:04]} 48. Kd3 {[%clk 0:00:04]}  Be1 {[%clk 0:00:03]} 49. Qa1 {[%clk 0:00:02]}  Bb4 {[%clk 0:00:02]} 50. Qxa2 {[%clk 0:00:02]}  Qxe5 {[%clk 0:00:03]} 51. Qe2 {[%clk 0:00:01]}  Qd6+ {[%clk 0:00:03]} 52. Kc2 {[%clk 0:00:01]}  Bc5 {[%clk 0:00:04]} 53. Qd3 {[%clk 0:00:01]}  Bd4 {[%clk 0:00:05]} 54. Nc3 {[%clk 0:00:01]}  c5 {[%clk 0:00:05]} 55. Nb5 {[%clk 0:00:01]}  Qa6 {[%clk 0:00:06]} 56. Nxd4 {[%clk 0:00:01]}  Qa2+ {[%clk 0:00:06]} 0-1


[Site "https://www.chess.com"]

[Event "Titled Tuesday Blitz April 18 Early 2023"]
[White "Prieto Aranguren, Alain"]
[Black "Devaev, Alexander"]
[WhiteFideId "2268906"]
[BlackFideId "4169395"]
[WhiteElo "2209"]
[BlackElo "2204"]
[Result "0-1"]
[Round "10"]
[TimeControl "180+2"]
[Date "2023.04.18"]
[WhiteClock "0:00:37"]
[BlackClock "0:00:17"]

1. d4 {[%clk 0:02:54]}  Nf6 {[%clk 0:02:56]} 2. c4 {[%clk 0:02:53]}  e6 {[%clk 0:02:57]} 3. Nc3 {[%clk 0:02:54]}  Bb4 {[%clk 0:02:57]} 4. e3 {[%clk 0:02:54]}  c5 {[%clk 0:02:58]} 5. Ne2 {[%clk 0:02:47]}  Nc6 {[%clk 0:02:54]} 6. a3 {[%clk 0:02:45]}  Bxc3+ {[%clk 0:02:53]} 7. bxc3 {[%clk 0:02:45]}  b6 {[%clk 0:02:51]} 8. g3 {[%clk 0:02:44]}  Ba6 {[%clk 0:02:50]} 9. d5 {[%clk 0:02:40]}  Na5 {[%clk 0:02:49]} 10. Bg2 {[%clk 0:02:33]}  Rc8 {[%clk 0:02:36]} 11. Qc2 {[%clk 0:02:24]}  Bxc4 {[%clk 0:02:30]} 12. e4 {[%clk 0:02:24]}  exd5 {[%clk 0:02:13]} 13. e5 {[%clk 0:02:23]}  Ng8 {[%clk 0:01:55]} 14. Nf4 {[%clk 0:02:19]}  Ne7 {[%clk 0:01:53]} 15. Be3 {[%clk 0:02:12]}  O-O {[%clk 0:01:44]} 16. h4 {[%clk 0:02:07]}  Nac6 {[%clk 0:01:30]} 17. h5 {[%clk 0:01:50]}  Nxe5 {[%clk 0:01:25]} 18. h6 {[%clk 0:01:51]}  g6 {[%clk 0:01:23]} 19. Rd1 {[%clk 0:01:41]}  Rc6 {[%clk 0:01:12]} 20. Nxd5 {[%clk 0:01:37]}  Nxd5 {[%clk 0:01:11]} 21. Bxd5 {[%clk 0:01:37]}  Bxd5 {[%clk 0:01:12]} 22. Rxd5 {[%clk 0:01:36]}  Re6 {[%clk 0:00:57]} 23. c4 {[%clk 0:01:31]}  Ng4 {[%clk 0:00:47]} 24. Qc3 {[%clk 0:01:28]}  Qf6 {[%clk 0:00:39]} 25. Qxf6 {[%clk 0:01:26]}  Nxf6 {[%clk 0:00:39]} 26. O-O {[%clk 0:01:22]}  Nxd5 {[%clk 0:00:38]} 27. cxd5 {[%clk 0:01:22]}  Re4 {[%clk 0:00:26]} 28. Kg2 {[%clk 0:01:18]}  Rfe8 {[%clk 0:00:24]} 29. Kf3 {[%clk 0:01:18]}  f6 {[%clk 0:00:23]} 30. Rb1 {[%clk 0:01:12]}  Kf7 {[%clk 0:00:22]} 31. Rb3 {[%clk 0:01:11]}  g5 {[%clk 0:00:22]} 32. d6 {[%clk 0:01:07]}  Kg6 {[%clk 0:00:21]} 33. g4 {[%clk 0:01:03]}  Kxh6 {[%clk 0:00:21]} 34. Rd3 {[%clk 0:01:01]}  Kg6 {[%clk 0:00:21]} 35. Rd5 {[%clk 0:01:01]}  R8e6 {[%clk 0:00:21]} 36. Ke2 {[%clk 0:00:49]}  Rxg4 {[%clk 0:00:18]} 37. Kd3 {[%clk 0:00:47]}  Ra4 {[%clk 0:00:19]} 38. Kc3 {[%clk 0:00:47]}  Rxa3+ {[%clk 0:00:19]} 39. Kc4 {[%clk 0:00:47]}  Ra4+ {[%clk 0:00:18]} 40. Kb5 {[%clk 0:00:47]}  Ra5+ {[%clk 0:00:18]} 41. Kc4 {[%clk 0:00:47]}  Re4+ {[%clk 0:00:18]} 42. Kd3 {[%clk 0:00:47]}  Re5 {[%clk 0:00:18]} 43. Rxe5 {[%clk 0:00:41]}  fxe5 {[%clk 0:00:19]} 44. Ke4 {[%clk 0:00:41]}  c4 {[%clk 0:00:18]} 45. Bd2 {[%clk 0:00:38]}  Rc5 {[%clk 0:00:17]} 46. Bc3 {[%clk 0:00:38]}  h5 {[%clk 0:00:18]} 47. Kf3 {[%clk 0:00:37]}  Kf5 {[%clk 0:00:17]} 0-1


[Site "https://www.chess.com"]

[Event "Titled Tuesday Blitz April 18 Early 2023"]
[White "djokovic74"]
[Black "Vivas Zamora, Fabian Ernesto"]
[BlackFideId "3902480"]
[WhiteElo "2552"]
[BlackElo "2262"]
[Result "1-0"]
[Round "10"]
[TimeControl "180+2"]
[Date "2023.04.18"]
[WhiteClock "0:00:57"]
[BlackClock "0:00:02"]

1. e4 {[%clk 0:02:58]}  e5 {[%clk 0:02:59]} 2. Nf3 {[%clk 0:02:58]}  Nc6 {[%clk 0:02:59]} 3. Bb5 {[%clk 0:02:59]}  Nf6 {[%clk 0:02:56]} 4. O-O {[%clk 0:02:59]}  Nxe4 {[%clk 0:02:56]} 5. d4 {[%clk 0:03:00]}  Nd6 {[%clk 0:02:55]} 6. Ba4 {[%clk 0:03:00]}  e4 {[%clk 0:02:21]} 7. Re1 {[%clk 0:02:59]}  Be7 {[%clk 0:02:19]} 8. Ne5 {[%clk 0:03:00]}  O-O {[%clk 0:02:13]} 9. Nc3 {[%clk 0:03:00]}  Bf6 {[%clk 0:02:04]} 10. Bf4 {[%clk 0:02:57]}  Ne7 {[%clk 0:01:28]} 11. Bb3 {[%clk 0:02:47]}  Ng6 {[%clk 0:01:21]} 12. Nxg6 {[%clk 0:02:44]}  hxg6 {[%clk 0:01:20]} 13. Bxd6 {[%clk 0:02:44]}  cxd6 {[%clk 0:01:19]} 14. Nxe4 {[%clk 0:02:44]}  Be7 {[%clk 0:01:14]} 15. Qf3 {[%clk 0:02:44]}  Rb8 {[%clk 0:00:56]} 16. Nc3 {[%clk 0:02:29]}  b5 {[%clk 0:00:47]} 17. Nd5 {[%clk 0:02:28]}  Bf6 {[%clk 0:00:47]} 18. Nxf6+ {[%clk 0:02:26]}  Qxf6 {[%clk 0:00:43]} 19. Qxf6 {[%clk 0:02:25]}  gxf6 {[%clk 0:00:44]} 20. Re7 {[%clk 0:02:25]}  a5 {[%clk 0:00:32]} 21. a4 {[%clk 0:02:11]}  d5 {[%clk 0:00:05]} 22. h3 {[%clk 0:01:27]}  bxa4 {[%clk 0:00:06]} 23. Rxa4 {[%clk 0:01:26]}  Rb5 {[%clk 0:00:06]} 24. Ra1 {[%clk 0:01:16]}  Rd8 {[%clk 0:00:02]} 25. Rae1 {[%clk 0:01:13]}  Kf8 {[%clk 0:00:02]} 26. R7e3 {[%clk 0:01:02]}  Bb7 {[%clk 0:00:03]} 27. Rc3 {[%clk 0:01:02]}  Bc6 {[%clk 0:00:03]} 28. Ra1 {[%clk 0:01:00]}  Ra8 {[%clk 0:00:02]} 29. f3 {[%clk 0:00:57]}  a4 {[%clk 0:00:02]} 30. Rxa4 {[%clk 0:00:57]} 1-0


[Site "https://www.chess.com"]

[Event "Titled Tuesday Blitz April 18 Early 2023"]
[White "Saravana, Krishnan P."]
[Black "Lach, Aleksandra"]
[WhiteFideId "5018382"]
[BlackFideId "1134299"]
[WhiteElo "2189"]
[BlackElo "2111"]
[Result "1-0"]
[Round "10"]
[TimeControl "180+2"]
[Date "2023.04.18"]
[WhiteClock "0:01:18"]
[BlackClock "0:00:06"]

1. e4 {[%clk 0:02:55]}  c5 {[%clk 0:02:58]} 2. Nf3 {[%clk 0:02:52]}  d6 {[%clk 0:02:54]} 3. d4 {[%clk 0:02:46]}  cxd4 {[%clk 0:02:54]} 4. Nxd4 {[%clk 0:02:45]}  Nf6 {[%clk 0:02:54]} 5. Nc3 {[%clk 0:02:44]}  g6 {[%clk 0:02:55]} 6. Be3 {[%clk 0:02:42]}  Bg7 {[%clk 0:02:54]} 7. f3 {[%clk 0:02:43]}  a6 {[%clk 0:02:50]} 8. Qd2 {[%clk 0:02:43]}  h5 {[%clk 0:02:45]} 9. Nd5 {[%clk 0:02:41]}  Nxd5 {[%clk 0:02:36]} 10. exd5 {[%clk 0:02:40]}  Nd7 {[%clk 0:02:35]} 11. c4 {[%clk 0:02:40]}  Ne5 {[%clk 0:02:30]} 12. Be2 {[%clk 0:02:39]}  Bd7 {[%clk 0:02:18]} 13. h3 {[%clk 0:02:36]}  Rc8 {[%clk 0:02:17]} 14. b3 {[%clk 0:02:37]}  f5 {[%clk 0:01:51]} 15. f4 {[%clk 0:02:35]}  Nf7 {[%clk 0:01:50]} 16. O-O {[%clk 0:02:33]}  O-O {[%clk 0:01:50]} 17. Rac1 {[%clk 0:02:32]}  Re8 {[%clk 0:01:43]} 18. Bf3 {[%clk 0:02:32]}  b5 {[%clk 0:01:22]} 19. cxb5 {[%clk 0:02:24]}  axb5 {[%clk 0:01:21]} 20. Ne6 {[%clk 0:02:20]}  Bxe6 {[%clk 0:01:18]} 21. dxe6 {[%clk 0:02:20]}  Nh6 {[%clk 0:01:17]} 22. Bc6 {[%clk 0:02:20]}  Rf8 {[%clk 0:00:56]} 23. Bxb5 {[%clk 0:02:20]}  Kh7 {[%clk 0:00:56]} 24. Bd7 {[%clk 0:02:19]}  Ra8 {[%clk 0:00:55]} 25. a4 {[%clk 0:02:18]}  Ng8 {[%clk 0:00:55]} 26. Bc6 {[%clk 0:02:09]}  Rb8 {[%clk 0:00:54]} 27. b4 {[%clk 0:02:08]}  Qc8 {[%clk 0:00:46]} 28. Bd5 {[%clk 0:01:58]}  Qa6 {[%clk 0:00:46]} 29. a5 {[%clk 0:01:47]}  Qb5 {[%clk 0:00:46]} 30. Rc7 {[%clk 0:01:37]}  Nf6 {[%clk 0:00:34]} 31. Bf3 {[%clk 0:01:33]}  Ng8 {[%clk 0:00:24]} 32. Rfc1 {[%clk 0:01:24]}  Qxb4 {[%clk 0:00:23]} 33. Qxb4 {[%clk 0:01:23]}  Rxb4 {[%clk 0:00:24]} 34. a6 {[%clk 0:01:23]}  Nf6 {[%clk 0:00:16]} 35. a7 {[%clk 0:01:23]}  Ne4 {[%clk 0:00:16]} 36. Rxe7 {[%clk 0:01:19]}  d5 {[%clk 0:00:14]} 37. Rcc7 {[%clk 0:01:18]}  Rb1+ {[%clk 0:00:06]} 38. Kh2 {[%clk 0:01:18]} 1-0


[Site "https://www.chess.com"]

[Event "Titled Tuesday Blitz April 18 Early 2023"]
[White "Zacurdajev, Dmitry"]
[Black "Sowul, Bartosz"]
[WhiteFideId "4196309"]
[BlackFideId "1137590"]
[WhiteElo "2189"]
[BlackElo "2188"]
[Result "1-0"]
[Round "10"]
[TimeControl "180+2"]
[Date "2023.04.18"]
[WhiteClock "0:00:15"]
[BlackClock "0:00:22"]

1. d4 {[%clk 0:03:00]}  Nf6 {[%clk 0:03:00]} 2. c4 {[%clk 0:03:00]}  c5 {[%clk 0:03:00]} 3. d5 {[%clk 0:03:00]}  b5 {[%clk 0:03:00]} 4. cxb5 {[%clk 0:03:00]}  a6 {[%clk 0:03:01]} 5. bxa6 {[%clk 0:03:01]}  g6 {[%clk 0:03:02]} 6. Nc3 {[%clk 0:03:01]}  Bg7 {[%clk 0:03:02]} 7. e4 {[%clk 0:03:02]}  O-O {[%clk 0:03:03]} 8. Nf3 {[%clk 0:03:02]}  Qa5 {[%clk 0:03:02]} 9. Bd2 {[%clk 0:02:58]}  Bxa6 {[%clk 0:03:02]} 10. Bxa6 {[%clk 0:02:58]}  Qxa6 {[%clk 0:03:02]} 11. Qe2 {[%clk 0:02:58]}  e6 {[%clk 0:03:03]} 12. Qxa6 {[%clk 0:02:58]}  Nxa6 {[%clk 0:03:04]} 13. dxe6 {[%clk 0:02:47]}  fxe6 {[%clk 0:03:05]} 14. O-O {[%clk 0:02:46]}  Nb4 {[%clk 0:02:58]} 15. Rfd1 {[%clk 0:02:26]}  d5 {[%clk 0:02:57]} 16. exd5 {[%clk 0:02:18]}  exd5 {[%clk 0:02:58]} 17. a3 {[%clk 0:02:11]}  Nd3 {[%clk 0:02:54]} 18. b4 {[%clk 0:02:04]}  d4 {[%clk 0:02:26]} 19. Nb5 {[%clk 0:01:51]}  Ne4 {[%clk 0:02:05]} 20. bxc5 {[%clk 0:01:44]}  Nexf2 {[%clk 0:01:45]} 21. Rf1 {[%clk 0:01:17]}  Ne4 {[%clk 0:01:43]} 22. Bb4 {[%clk 0:01:11]}  Nexc5 {[%clk 0:01:35]} 23. Nbxd4 {[%clk 0:00:57]}  Nxb4 {[%clk 0:01:25]} 24. axb4 {[%clk 0:00:58]}  Rxa1 {[%clk 0:01:13]} 25. Rxa1 {[%clk 0:00:59]}  Nd3 {[%clk 0:01:03]} 26. Rb1 {[%clk 0:00:55]}  Rf4 {[%clk 0:00:56]} 27. Nc6 {[%clk 0:00:40]}  g5 {[%clk 0:00:53]} 28. Nxg5 {[%clk 0:00:32]}  Bf8 {[%clk 0:00:50]} 29. Ne6 {[%clk 0:00:26]}  Rc4 {[%clk 0:00:49]} 30. Nxf8 {[%clk 0:00:20]}  Rxc6 {[%clk 0:00:48]} 31. Nd7 {[%clk 0:00:20]}  Kg7 {[%clk 0:00:32]} 32. b5 {[%clk 0:00:19]}  Rc7 {[%clk 0:00:25]} 33. b6 {[%clk 0:00:19]}  Rb7 {[%clk 0:00:25]} 34. Rb3 {[%clk 0:00:13]}  Nc1 {[%clk 0:00:18]} 35. Nc5 {[%clk 0:00:09]}  Rb8 {[%clk 0:00:14]} 36. Rg3+ {[%clk 0:00:08]}  Kh6 {[%clk 0:00:13]} 37. b7 {[%clk 0:00:09]}  Ne2+ {[%clk 0:00:13]} 38. Kf2 {[%clk 0:00:09]}  Nxg3 {[%clk 0:00:14]} 39. Kxg3 {[%clk 0:00:09]}  Kg5 {[%clk 0:00:14]} 40. Kf3 {[%clk 0:00:09]}  Kf5 {[%clk 0:00:15]} 41. Ke3 {[%clk 0:00:10]}  Re8+ {[%clk 0:00:14]} 42. Kd4 {[%clk 0:00:10]}  Rd8+ {[%clk 0:00:14]} 43. Kc4 {[%clk 0:00:11]}  Ke5 {[%clk 0:00:14]} 44. Na6 {[%clk 0:00:11]}  Ke4 {[%clk 0:00:14]} 45. b8=Q {[%clk 0:00:11]}  Rxb8 {[%clk 0:00:14]} 46. Nxb8 {[%clk 0:00:12]}  Ke3 {[%clk 0:00:14]} 47. Nc6 {[%clk 0:00:08]}  Kf2 {[%clk 0:00:15]} 48. g4 {[%clk 0:00:08]}  Kf3 {[%clk 0:00:15]} 49. Ne5+ {[%clk 0:00:08]}  Kg2 {[%clk 0:00:15]} 50. h4 {[%clk 0:00:08]}  Kh3 {[%clk 0:00:15]} 51. h5 {[%clk 0:00:09]}  Kh4 {[%clk 0:00:16]} 52. Kd5 {[%clk 0:00:09]}  Kg5 {[%clk 0:00:16]} 53. Ke6 {[%clk 0:00:10]}  Kh6 {[%clk 0:00:16]} 54. Kf7 {[%clk 0:00:07]}  Kg5 {[%clk 0:00:16]} 55. Kg7 {[%clk 0:00:08]}  h6 {[%clk 0:00:16]} 56. Kh7 {[%clk 0:00:06]}  Kf6 {[%clk 0:00:16]} 57. Kxh6 {[%clk 0:00:06]}  Kxe5 {[%clk 0:00:17]} 58. g5 {[%clk 0:00:07]}  Ke6 {[%clk 0:00:18]} 59. g6 {[%clk 0:00:08]}  Ke7 {[%clk 0:00:18]} 60. Kh7 {[%clk 0:00:08]}  Kf6 {[%clk 0:00:18]} 61. g7 {[%clk 0:00:09]}  Kg5 {[%clk 0:00:19]} 62. g8=Q+ {[%clk 0:00:10]}  Kh4 {[%clk 0:00:20]} 63. Kg6 {[%clk 0:00:09]}  Kg4 {[%clk 0:00:20]} 64. Kf6+ {[%clk 0:00:09]}  Kf4 {[%clk 0:00:20]} 65. Qg5+ {[%clk 0:00:09]}  Ke4 {[%clk 0:00:21]} 66. h6 {[%clk 0:00:10]}  Kf3 {[%clk 0:00:21]} 67. h7 {[%clk 0:00:11]}  Ke2 {[%clk 0:00:22]} 68. h8=Q {[%clk 0:00:11]}  Kd3 {[%clk 0:00:22]} 69. Qhh4 {[%clk 0:00:12]}  Ke2 {[%clk 0:00:22]} 70. Qgg3 {[%clk 0:00:13]}  Kf1 {[%clk 0:00:22]} 71. Qh1+ {[%clk 0:00:13]}  Ke2 {[%clk 0:00:22]} 72. Qhh2+ {[%clk 0:00:14]}  Kd1 {[%clk 0:00:22]} 73. Qgg1# {[%clk 0:00:15]} 1-0


[Site "https://www.chess.com"]

[Event "Titled Tuesday Blitz April 18 Early 2023"]
[White "Garv Gaur"]
[Black "Begunov, Konstantin"]
[WhiteFideId "45030839"]
[BlackFideId "4118510"]
[WhiteElo "2068"]
[BlackElo "2087"]
[Result "0-1"]
[Round "10"]
[TimeControl "180+2"]
[Date "2023.04.18"]
[WhiteClock "0:01:10"]
[BlackClock "0:00:17"]

1. Nf3 {[%clk 0:03:00]}  d5 {[%clk 0:03:00]} 2. b3 {[%clk 0:03:00]}  c6 {[%clk 0:03:00]} 3. Bb2 {[%clk 0:02:59]}  Bg4 {[%clk 0:03:01]} 4. e3 {[%clk 0:02:58]}  Nd7 {[%clk 0:03:00]} 5. d4 {[%clk 0:02:57]}  e6 {[%clk 0:02:59]} 6. Be2 {[%clk 0:02:47]}  Bd6 {[%clk 0:02:59]} 7. h3 {[%clk 0:02:47]}  Bh5 {[%clk 0:02:59]} 8. c4 {[%clk 0:02:41]}  Qe7 {[%clk 0:02:58]} 9. Nbd2 {[%clk 0:02:37]}  f5 {[%clk 0:02:57]} 10. Ne5 {[%clk 0:02:35]}  Bxe2 {[%clk 0:02:56]} 11. Qxe2 {[%clk 0:02:36]}  Ngf6 {[%clk 0:02:49]} 12. f4 {[%clk 0:02:34]}  Bb4 {[%clk 0:02:36]} 13. O-O {[%clk 0:02:31]}  Bxd2 {[%clk 0:02:30]} 14. Qxd2 {[%clk 0:02:32]}  Ne4 {[%clk 0:02:30]} 15. Qd1 {[%clk 0:02:29]}  Nxe5 {[%clk 0:02:27]} 16. fxe5 {[%clk 0:02:25]}  O-O {[%clk 0:02:23]} 17. a4 {[%clk 0:02:23]}  Qg5 {[%clk 0:02:09]} 18. Qe1 {[%clk 0:02:20]}  f4 {[%clk 0:01:49]} 19. exf4 {[%clk 0:02:03]}  Rxf4 {[%clk 0:01:48]} 20. Rxf4 {[%clk 0:01:59]}  Qxf4 {[%clk 0:01:49]} 21. Bc1 {[%clk 0:01:59]}  Qf5 {[%clk 0:01:36]} 22. Be3 {[%clk 0:01:57]}  Rf8 {[%clk 0:01:34]} 23. Qb4 {[%clk 0:01:57]}  Ng3 {[%clk 0:01:02]} 24. Re1 {[%clk 0:01:44]}  h5 {[%clk 0:00:51]} 25. cxd5 {[%clk 0:01:35]}  cxd5 {[%clk 0:00:47]} 26. Qxb7 {[%clk 0:01:30]}  h4 {[%clk 0:00:46]} 27. Qa6 {[%clk 0:01:30]}  Kh7 {[%clk 0:00:30]} 28. a5 {[%clk 0:01:29]}  Qc2 {[%clk 0:00:19]} 29. Qxe6 {[%clk 0:01:25]}  Qxb3 {[%clk 0:00:17]} 30. Qg4 {[%clk 0:01:23]}  Qxe3+ {[%clk 0:00:15]} 31. Kh2 {[%clk 0:01:18]}  Qxe1 {[%clk 0:00:15]} 32. Qxh4+ {[%clk 0:01:18]}  Kg8 {[%clk 0:00:15]} 33. Qxg3 {[%clk 0:01:18]}  Qxg3+ {[%clk 0:00:15]} 34. Kxg3 {[%clk 0:01:19]}  Rf1 {[%clk 0:00:15]} 35. Kg4 {[%clk 0:01:17]}  Kf7 {[%clk 0:00:15]} 36. h4 {[%clk 0:01:15]}  Rd1 {[%clk 0:00:15]} 37. Kf5 {[%clk 0:01:15]}  Rxd4 {[%clk 0:00:16]} 38. g4 {[%clk 0:01:15]}  Re4 {[%clk 0:00:15]} 39. g5 {[%clk 0:01:15]}  Re1 {[%clk 0:00:16]} 40. g6+ {[%clk 0:01:10]}  Ke7 {[%clk 0:00:15]} 41. h5 {[%clk 0:01:11]}  d4 {[%clk 0:00:16]} 42. e6 {[%clk 0:01:09]}  d3 {[%clk 0:00:15]} 43. h6 {[%clk 0:01:10]}  gxh6 {[%clk 0:00:16]} 44. g7 {[%clk 0:01:10]}  Rg1 {[%clk 0:00:17]} 0-1


[Site "https://www.chess.com"]